Cogmind - Beta 12 @@@ ROGUE MODE // 2023.07.13 @ 07:55:16 Player: kawyua Result: Destroyed by G-47 Trooper with Particle Gun Performance ------------- Evolutions (0) 0 Regions Visited (1) 200 Robots Destroyed (14) 70 Value Destroyed (307) 307 Prototype IDs (0) 0 Alien Tech Used (0) 0 Bonus (0) 0 TOTAL SCORE: 577 Bonus ------- None Cogmind --------- Core Integrity 0/250 Matter 290/300 Energy 100/100 System Corruption 0% Temperature Cool (9) Movement Core (350) Ox6 Location -10/Materials Parts ------- > --- POWER (1) -------- (None) > --- PROPULSION (2) --- (None) > --- UTILITY (2) ------ Large Storage Unit > --- WEAPON (2) ------- (None) > --- INVENTORY (15) --- Light Ion Engine Weight Redist. System Mining Laser Peak State ------------ > --- POWER ------------ Ion Engine > --- PROPULSION ------- Light Treads Light Treads > --- UTILITY ---------- Small Storage Unit Improved Terrain Scanner > --- WEAPON ----------- Assault Rifle Assault Rifle > --- INVENTORY -------- Mining Laser [Rating: 9] Favorites ----------- Power Ion Engine Engine Ion Engine Propulsion Light Treads Treads Light Treads Hover Unit Hover Unit Utility Small Storage Unit Device Improved Terrain Scanner Storage Small Storage Unit Weapon Assault Rifle Ballistic Gun Assault Rifle Launcher Grenade Launcher Build | -11 -10 ------- Run | Jun Mat Slots Evolved . | . . Power . | . . Propulsion . | . . Utility . | . . Weapon . | . . Parts Attached 11 | 7 4 Power 2 | 2 . Engine 2 | 2 . Core . | . . Reactor . | . . Propulsion 3 | 2 1 Treads 2 | 2 . Leg . | . . Wheel . | . . Hover 1 | . 1 Flight . | . . Utility 3 | 1 2 Device 1 | . 1 Storage 2 | 1 1 Processor . | . . Hackware . | . . Protection . | . . Artifact . | . . Weapon 3 | 2 1 Energy Gun . | . . Energy Cannon . | . . Ballistic Gun 2 | 2 . Ballistic Cannon . | . . Launcher 1 | . 1 Special Weapon . | . . Impact Weapon . | . . Slashing Weapon . | . . Piercing Weapon . | . . Special Melee Weapon . | . . Unidentified Prototypes . | . . Parts Lost 8 | . 8 Power 1 | . 1 Propulsion 3 | . 3 Utility 1 | . 1 Weapon 3 | . 3 Highest Loss Streak 7 | . 7 To Critical Strikes . | . . Average Slot Usage (%) 84 | . 84 Engine 13 | . 13 Treads 25 | . 25 Device 3 | . 3 Storage 14 | . 14 Ballistic Gun 25 | . 25 Naked Turns . | . . Heaviest Build 29 | 14 29 Greatest Support 40 | 40 40 Greatest Overweight (x) 7 | . 7 Average Overweight (x) . | . . Largest Inventory Capacity 15 | 8 15 Average Capacity 10 | 7 12 Most Carried 5 | 2 5 Average Carried 1 | . 2 Final Capacity 15 | 8 15 Final Carried 3 | 2 3 Class Distribution -------------------- 100% | Mutant Dominant Class ---------------- Mutant | -10/Materials Resources | -11 -10 ----------- Run | Jun Mat Matter Collected 566 | 308 258 Remotely . | . . Salvage Created 511 | 105 406 Parts 24 | 7 17 Haulers Intercepted 1 | . 1 Recyclers Shooed 2 | . 2 Parts Field Recycled . | . . Retrieved Matter . | . . Parts Self-Destructed . | . . Prevented . | . . Kills | -11 -10 ------- Run | Jun Mat Combat Hostiles Destroyed 7 | . 7 Guns 7 | . 7 Classes Destroyed 4 | 1 3 Tunneler 5 | 5 . Hauler 1 | . 1 Recycler 1 | . 1 Grunt 7 | . 7 Best Kill Streak 2 | 2 2 Combat Bots Only 2 | . 2 Max Kills in Single Turn 1 | 1 1 Gunslinging . | . . Exploded . | . . Melee . | . . Uniques/NPCs Destroyed . | . . Combat | -11 -10 -------- Run | Jun Mat Damage Taken 1020 | . 1020 Core 261 | . 261 Absorbed by Shields . | . . Core Remaining (%) 100 | 100 . Volleys Fired 51 | 14 37 Largest 2 | 2 2 Hottest 40 | 40 40 Shots Fired 98 | 28 70 Gun 97 | 28 69 Cannon . | . . Launcher 1 | . 1 Special . | . . Kinetic 97 | 28 69 Thermal . | . . Explosive 1 | . 1 Electromagnetic . | . . Robot Hit Streak 9 | 9 9 Robot Miss Streak 2 | 1 2 Penetration Max . | . . Secondary Targets . | . . Shots Hit Robots 67 | 19 48 Core Hits 24 | 5 19 Critical Kills . | . . Critical Parts Destroyed 1 | 1 . Critical Strikes 1 | 1 . Destroy 1 | 1 . Melee Attacks . | . . Impact . | . . Slashing . | . . Piercing . | . . Sneak Attacks . | . . Combat Hostiles . | . . Follow-up Attacks . | . . Damage Inflicted 955 | 230 725 Guns 829 | 230 599 Cannons . | . . Explosions 126 | . 126 Melee . | . . Ramming . | . . Kinetic 829 | 230 599 Thermal . | . . Explosive 126 | . 126 Electromagnetic . | . . Impact . | . . Slashing . | . . Piercing . | . . Highest Corruption . | . . Average Corruption . | . . Corruption Purged . | . . Corruption Blocked . | . . Overload Shots . | . . Overflow Damage . | . . Projectiles . | . . Explosions . | . . Melee . | . . Knockbacks . | . . Impact . | . . Kinetic . | . . Secondary . | . . Self-Inflicted Damage 40 | . 40 Shots 1 | . 1 Rammed . | . . Targets Rammed . | . . Kicked . | . . Crushed . | . . Highest Temperature 26 | . 26 Average Temperature 6 | . 6 Received Heat Transfer 573 | . 573 Siege Activations . | . . Robots Corrupted . | . . Combat Hostiles . | . . Parts Fried . | . . Impact Corruptions . | . . Robots Melted . | . . Combat Hostiles . | . . Parts Melted . | . . Heat Transferred . | . . Parts Sabotaged . | . . Parts Stolen . | . . Parts Stripped . | . . Power Chain Reactions . | . . Missiles Intercepted . | . . Alert | -11 -10 ------- Run | Jun Mat Peak Influence 170 | 25 170 Initial . | . . Average 49 | 7 79 Maximum Alert Level . | . . Low Security (%) 100 | 100 100 Level 1 . | . . Level 2 . | . . Level 3 . | . . Level 4 . | . . Level 5 . | . . High Security . | . . Max Security . | . . Squads Dispatched 1 | . 1 Investigation . | . . Extermination . | . . Reinforcement 1 | . 1 Assault . | . . Garrison . | . . Intercept . | . . Searches Triggered . | . . Construction Impeded . | . . Haulers Reinforced . | . . Active Scanning Responses . | . . Cargo Convoy Interrupts . | . . Stealth | -11 -10 --------- Run | Jun Mat Distress Signals . | . . Communications Jammed . | . . Distress Signals . | . . Times Spotted 18 | . 18 Peak Tracking Total 4 | . 4 Tactical Retreats 2 | . 2 Traps | -11 -10 ------- Run | Jun Mat Traps Triggered . | . . Indirectly . | . . Trap Hack Attempts . | . . Triggered . | . . Disarmed . | . . Reprogrammed . | . . Reused . | . . Traps Extracted . | . . Installed . | . . Triggered . | . . Machines | -11 -10 ---------- Run | Jun Mat Machines Disabled . | . . Max in Single Turn . | . . Machines Repaired . | . . Machines Sabotaged . | . . Overloaded Fab Kills . | . . Hacking | -11 -10 --------- Run | Jun Mat Machines Accessed . | . . Terminals . | . . Fabricators . | . . Repair Stations . | . . Recycling Units . | . . Scanalyzers . | . . Garrison Access . | . . Total Hacks . | . . Successful . | . . Failed . | . . Catastrophic . | . . Database Lockouts . | . . Manual . | . . Terminals . | . . Fabricators . | . . Repair Stations . | . . Recycling Units . | . . Scanalyzers . | . . Garrison Access . | . . Terminal Hacks . | . . Fabricator Hacks . | . . Repair Station Hacks . | . . Recycling Unit Hacks . | . . Scanalyzer . | . . Garrison Access Hacks . | . . Unauthorized Hacks . | . . Terminals . | . . Fabricators . | . . Repair Stations . | . . Recycling Units . | . . Scanalyzers . | . . Garrison Access . | . . Data Cores Recovered . | . . Used . | . . Hacking Detections . | . . Full Trace Events . | . . Feedback Events . | . . Feedback Blocked . | . . Robot Schematics Acquired . | . . Robots Built . | . . Authchips . | . . Time . | . . Total Robot Build Rating . | . . Part Schematics Acquired . | . . Parts Built . | . . Authchips . | . . Time . | . . Total Part Build Rating . | . . Parts Repaired . | . . Time . | . . Parts Recycled . | . . Recycled Matter . | . . Retrieved Matter . | . . Retrieved Components . | . . Parts Scanalyzed . | . . Part Schematics Acquired . | . . Parts Damaged . | . . Bothacking | -11 -10 ------------ Run | Jun Mat Used RIF Installer . | . . Robots Hacked . | . . Non-combat . | . . Combat . | . . Robot Hacks Applied . | . . Relay Couplers Released . | . . Fabnet Peak Effective % . | . . Robots Rewired . | . . Allies Hacked . | . . Hacks Repelled . | . . Allies | -11 -10 -------- Run | Jun Mat Total Allies . | . . Largest Group . | . . Highest-Rated Group . | . . Highest-Rated Ally . | . . Total Orders . | . . Ally Attacks . | . . Total Damage . | . . Kills . | . . Allies Corrupted . | . . Allies Melted . | . . Intel | -11 -10 ------- Run | Jun Mat Robot Analysis Total . | . . Derelict Logs Recovered . | . . Drone Launches . | . . Drone Recoveries . | . . Exploration | -11 -10 ------------- Run | Jun Mat Turns Passed 1148 | 479 669 Spaces Moved 568 | 264 304 Core 14 | 6 8 Treads 550 | 258 292 Legs . | . . Wheels . | . . Hover 4 | . 4 Flight . | . . Fastest Speed 50 | 50 160 Average Speed 163 | 157 168 Slowest Speed 400 | 160 400 Overloaded Moves . | . . Propulsion Burnouts . | . . Robots Hopped . | . . Cave-ins Triggered . | . . Exploration Rate (%) 28 | 12 45 Regions Visited 1 Branch Regions . Pre-discovered Areas . | . . Known Exits Taken . | . . Unknown Exits Taken 1 | 1 . Scrap Searched . | . . Spaces Dug . | . . Terrain Destroyed 7 | . 7 Melee . | . . Projectile . | . . AOE 7 | . 7 Terrain Rammed . | . . Walls Destroyed . | . . Machines Disabled . | . . Actions | -11 -10 --------- Run | Jun Mat Total 691 | 299 392 Wait 46 | 5 41 Move 567 | 263 304 Hop . | . . Pick Up 14 | 9 5 Fast Attach . | . . Attach 10 | 6 4 Detach . | . . Swap 1 | 1 . Drop 2 | 1 1 Fire 51 | 14 37 Melee . | . . Ram . | . . Kick . | . . Crush . | . . Escape Stasis . | . . Rewire . | . . Trap . | . . Miscellaneous . | . . Route ------- -11/Junkyard -10/Materials (discovered 1 exit: [*Min]) History --------- Turn | Location | Event 4 | -11/Junkyard | Discovered new exit (range 16) 480 | -11/Junkyard | Entered Materials 501 | -10/Materials | Build established: Mutant 800 | -10/Materials | Discovered new exit (range 16) 1120 | -10/Materials | Core integrity fell below 50% 1144 | -10/Materials | Core integrity fell below 20% 1149 | -10/Materials | Destroyed by G-47 Trooper with Particle Gun Last Messages --------------- 01057_ R-06 Scavenger collects Aluminum Leg. 01059_ R-06 Scavenger collects Heat Sink. 01075_ K-01 Serf destroyed. 01079_ Critical hit (Burn: +37). 01085_ Assault Rifle destroyed. 01088_ Acquired Lgt. Ion Engine. 01089_ Lgt. Treads destroyed. 01089_ Acquired 5 matter. 01093_ Acquired 3 matter. 01095_ Assault Rifle destroyed. 01101_ Ion Engine destroyed. 01101_ R-06 Scavenger destroyed. 01102_ U-05 Engineer lays Concrete. 01106_ Lgt. Treads destroyed. 01106_ U-05 Engineer lays Concrete. 01109_ U-05 Engineer builds a Wall. 01110_ U-05 Engineer lays Concrete. 01117_ Hover Unit destroyed. 01117_ U-05 Engineer lays Concrete. 01137_ Grenade Launcher destroyed. Map ----- +----------------------------------------------------+ | ?????????????????????????????????# "" """ # # | | ?????????????????????????????????# """ # # | | ?????????????? ????????????????# # # | | ?????????????# ????????????????# # # | | ?????????????# ????????????????############# # | | ?????????????# ???????????????????????????## # | | ?????????????# ???????????????????????????# | | ?????????????# ???????????????????????????# | | ?????????????+ ???????????????????????????# T | | ?????????????# #??????????????????????????# | | ?????????????# #??????????????????????????# | | ?????????????# #??????????????????????????# ## | | ?????????????# #??????????????????????????# #? | | ?????????????# +??????????????????????????# #? | | ?????????????# #??????????????????????????# #? | | ?????????????# = #???????????????????######## #? | | ????????????##!% #####??#######??????# # #? | | ????????????# = #### #??????# # #? | | ????????????# != #??????# # # | | ????????????# #??????# # #? | | ????????????# #??????# # # | | ????????????# # ### #??????# # # | | ????????????############## g ##?###### # + | | ??????????????????# [ # k #? ! # # # | | ??????????????????# #g # # # # | | ??????????????????# " [ @ + "Y" # # # | | ??????????????????# T # # """ # # ## | | ??????????????????# " # # # + # | | ??????????????????# # #?####### # # | | ??????????????????######## ################ # | | ?????????????????????????# w # | | ?????????????????????????# # | | ?????????????????????????# + | | ?????????????????????????# ###### """"" ## | | ?????????????????????????# #????# """"" ## | | ?????????????????????????# #????# """"" | | ?????????????????????????# #???## | | ?????????????????????????# #????# ! | | ?????????????????????????# #??### #########+## | | ?????????????????????????# #????# ## # | | ?????????????????????????# ?????# ## # | | ????????????????????????? ?????# ## # | | ????????????????????????? ?????# ## """ # | | ????????????????????????? ????## ## % """ # | | ????????????????????????? ?????# ## " " """ # | | ??????????????????????????????????# + "T" # | | ??????????????????????????????????# ## """ # | | ??????????????????????????????????# ############ | | ?????????????????????????????????###+#######??#??? | | ?????????????????????????????????# #?????? | +----------------------------------------------------+ Best States ------------- Heat Dissipation 25 Energy Generation 10 Energy Capacity 250 Matter Stores 300 Matter Capacity 300 Sight Range 16 Terrain Scan Range 16 Terrain Scan Density 10 Evasion (%) 40 Recoil Reduction 2 Item Schematics ----------------- None Robot Schematics ------------------ None Fabricated ------------ Nothing Alien Tech Used ----------------- None Achievements -------------- None Challenges ------------ None Game ------ Seed PhysicsEtherialBrace Manual? 0 Play Time 00:10:35 Cumulative 154.9 hours Start 2023.07.13 @ 07:14:05 End 2023.07.13 @ 07:55:16 Sessions 1 Manual Loads 0 Difficulty Rogue Special Mode None Game No. 42 Rogue 42 Adventurer 0 Explorer 0 Win Type - Total 6 Types 6/0/0/0/0/0/0/0/0 Lore% 43 Gallery% 55 Achievement% 48 Wizard Run 0 Options --------- ASCII 0 Keyboard 0 Movement Mouse Keybinds 0 Fullscreen 2 Font 16/SmallcapsGlow Map View 75x55 Tactical HUD 1 Map Filters NONE Filters NONE Steam 1 RUN: 7f890315-be0d-44a6-b2f4-72184960ad58